Workbook

Sheet Sheet1
A1: Demonstration of effect of derivative peak sharpening on perpendicular drop area measurements of two symmetrical overlapping peaks. | X1: Tom O'Haver (toh@umd.edu), Version 3, August 2018
A2: Simulated peaks | C2: The simulated data of two Gaussian peaks are in column A and B (X and Y), rows 9 to 313. Cells B4 - B6 control the peak width, noise, and relative height of peak 2.
A3: peak 2 | B3: 0.5 | D3: % error | E3: Area 1 | F3: Area 2 | G3: Peak 1 true | H3: Peak 2 true | I3: Click buttons to change K1 and K2
A4: Width | B4: 313 | D4: Raw | E4: =((SUM(B9:B134)*(A10-A9)-G4))/G4 -> -0.01131484822 | F4: =(SUM(B135:B313)*(A10-A9)-H4)/H4 -> 0.02224894698 | G4: =(1.0646*1*B4) -> 333.2198 | H4: =(1.0646*$B$3*B4) -> 166.6099 | I4: K1= | J4: 3265.633333 | L4: The smooth function is defined by the 17 red coefficients in row 5, columns K through AA.
A5: Noise | B5: 0 | D5: Sharp | E5: =((SUM(J9:J134)*(A10-A9)-G4))/G4 -> -0.000680847746 | F5: =((SUM(J135:J313)*(A11-A10)-H4))/H4 -> 0.0009809020261 | I5: K2= | J5: 47989624.8 | L5: -8 | M5: -7 | N5: -6 | O5: -5 | P5: -4 | Q5: -3 | R5: -2 | S5: -1 | T5: 0 | U5: 1 | V5: 2 | W5: 3 | X5: 4 | Y5: 5 | Z5: 6 | AA5: 7 | AB5: 8
A6: delta x | B6: 10 | D6: Rs= | E6: =500/(2*B4) -> 0.7987220447 | I6: =B4^2/30 -> 3265.633333 | J6: =B4^4/200 -> 47989624.8 | K6: Smooth coefficients---> | L6: 0 | M6: 0 | N6: 0 | O6: 0 | P6: 0 | Q6: 0 | R6: 0 | S6: 1 | T6: 2 | U6: 1 | V6: 0 | W6: 0 | X6: 0 | Y6: 0 | Z6: 0 | AA6: 0 | AB6: 0
A7: Simulated data | C7: 1st | E7: Smoothed | F7: 2nd | G7: Smoothed | H7: 4th | I7: Smoothed | J7: Sharpened
A8: X | B8: Y | C8: derivative | E8: 1st deriv. | F8: derivative | G8: 2nd deriv. | H8: derivative | I8: 4th deriv. | J8: Signal
A9: 0 | B9: =EXP(-1*(($A9-1000)/(0.60056*$B$4))^2)+$B$3*EXP(-1*(($A9-1500)/(0.60056*$B$4))^2)+$B$5*(RAND()-RAND()+RAND()-RAND()) -> 5.118281756e-13 | C9: 0 | E9: 0 | G9: 0 | J9: =B9-($J$4*G9)+($J$5*I9) -> 5.118281756e-13
A10: =A9+$B$6 -> 10 | B10: =EXP(-1*(($A10-1000)/(0.60056*$B$4))^2)+$B$3*EXP(-1*(($A10-1500)/(0.60056*$B$4))^2)+$B$5*(RAND()-RAND()+RAND()-RAND()) -> 8.989025621e-13 | C10: =(B10-B9)/(A10-A9) -> 3.870743865e-14 | E10: 0 | F10: =(E11-E9)/(A11-A9) -> 0 | G10: 0 | H10: =(G11-G9)/(A11-A9) -> 0 | J10: =B10-($J$4*G10)+($J$5*I10) -> 8.989025621e-13
A11: =A10+$B$6 -> 20 | B11: 1.569794748e-12 | C11: =(B11-B10)/(A11-A10) -> 6.708921858e-14 | E11: 0 | F11: 0 | G11: 0 | H11: 0 | J11: 1.569794748e-12
A12: 30 | B12: 2.725931574e-12 | C12: 1.156136826e-13 | E12: 0 | F12: 0 | G12: 0 | H12: 0 | J12: 2.725931574e-12
A13: 40 | B13: 4.706833688e-12 | C13: 1.980902114e-13 | E13: 0 | F13: 0 | G13: 0 | H13: 0 | J13: 4.706833688e-12
A14: 50 | B14: 8.081362371e-12 | C14: 3.374528683e-13 | E14: 0 | F14: 0 | G14: 0 | H14: 0 | J14: 8.081362371e-12
A15: 60 | B15: 1.379691961e-11 | C15: 5.715557243e-13 | E15: 0 | F15: 0 | G15: 0 | H15: 0 | J15: 1.379691961e-11
A16: 70 | B16: 2.342186706e-11 | C16: 9.624947444e-13 | E16: 0 | F16: 0 | G16: 0 | H16: 0 | J16: 2.342186706e-11
A17: 80 | B17: 3.953690909e-11 | C17: 1.611504203e-12 | E17: 0 | F17: 0 | G17: 0 | H17: 0 | J17: 3.953690909e-11
A18: 90 | B18: 6.636295889e-11 | C18: 2.68260498e-12 | E18: =(C10*$L$6+C11*$M$6+C12*$N$6+C13*$O$6+C14*$P$6+C15*$Q$6+C16*$R$6+C17*$S$6+C18*$T$6+C19*$U$6+C20*$V$6+C21*$W$6+C22*$X$6+C23*$Y$6+C24*$Z$6+C25*$AA$6+C26*$AB$6)/SUM($L$6:$AB$6) -> 2.854153322e-12 | F18: 0 | G18: 0 | H18: 0 | J18: 6.636295889e-11
A19: 100 | B19: 1.107619501e-10 | C19: 4.439899126e-12 | E19: 4.717099765e-12 | F19: =(E20-E18)/(A20-A18) -> 2.448526313e-13 | G19: 0 | H19: 0 | J19: 1.107619501e-10
A20: 110 | B20: 1.838219084e-10 | C20: 7.305995828e-12 | E20: 7.751205948e-12 | F20: 3.973273108e-13 | G20: 0 | H20: 0 | J20: 1.838219084e-10
A21: 120 | B21: 3.033512385e-10 | C21: 1.195293301e-11 | E21: 1.266364598e-11 | F21: 6.409586522e-13 | G21: 0 | H21: 0 | J21: 3.033512385e-10
A22: 130 | B22: 4.977784593e-10 | C22: 1.944272207e-11 | E22: 2.057037899e-11 | F22: 1.02789029e-12 | G22: 0 | H22: 0 | J22: 4.977784593e-10
A23: 140 | B23: 8.122098474e-10 | C23: 3.144313881e-11 | E23: 3.322145178e-11 | F23: 1.638686054e-12 | G23: 0 | H23: 0 | J23: 8.122098474e-10
A24: 150 | B24: 1.317777922e-09 | C24: 5.055680743e-11 | E24: 5.334410008e-11 | F24: 2.597012129e-12 | G24: 0 | H24: 0 | J24: 1.317777922e-09
A25: 160 | B25: 2.125974388e-09 | C25: 8.081964664e-11 | E25: 8.516169437e-11 | F25: 4.091459796e-12 | G25: 0 | H25: 0 | J25: 2.125974388e-09
A26: 170 | B26: 3.410481156e-09 | C26: 1.284506768e-10 | E26: 1.35173296e-10 | F26: 6.407748059e-12 | G26: 0 | H26: =(G25-2*G26+G27)/(A27-A25)^2 -> 2.612398651e-14 | J26: 3.410481156e-09
A27: 180 | B27: 5.440202994e-09 | C27: 2.029721838e-10 | E27: 2.133166556e-10 | F27: 9.975898164e-12 | G27: =(F19*$L$6+F20*$M$6+F21*$N$6+F22*$O$6+F23*$P$6+F24*$Q$6+F25*$R$6+F26*$S$6+F27*$T$6+F28*$U$6+F29*$V$6+F30*$W$6+F31*$X$6+F32*$Y$6+F33*$Z$6+F34*$AA$6+F35*$AB$6)/SUM($L$6:$AB$6) -> 1.044959461e-11 | H27: =(G26-2*G27+G28)/(A28-A26)^2 -> -1.186986858e-14 | I27: =(H19*$L$6+H20*$M$6+H21*$N$6+H22*$O$6+H23*$P$6+H24*$Q$6+H25*$R$6+H26*$S$6+H27*$T$6+H28*$U$6+H29*$V$6+H30*$W$6+H31*$X$6+H32*$Y$6+H33*$Z$6+H34*$AA$6+H35*$AB$6)/SUM($L$6:$AB$6) -> 2.447984094e-15 | J27: =B27-($J$4*G27)+($J$5*I27) -> 8.879349672e-08
A28: 190 | B28: 8.628918772e-09 | C28: 3.188715779e-10 | E28: 3.346912593e-10 | F28: 1.543883404e-11 | G28: =(F20*$L$6+F21*$M$6+F22*$N$6+F23*$O$6+F24*$P$6+F25*$Q$6+F26*$R$6+F27*$S$6+F28*$T$6+F29*$U$6+F30*$V$6+F31*$W$6+F32*$X$6+F33*$Y$6+F34*$Z$6+F35*$AA$6+F36*$AB$6)/SUM($L$6:$AB$6) -> 1.615124178e-11 | H28: 7.407687016e-15 | I28: 3.500198465e-15 | J28: 1.238580963e-07
A29: 200 | B29: 1.360941575e-08 | C29: 4.980496976e-10 | E29: 5.220933363e-10 | F29: 2.375140089e-11 | G29: 2.481596376e-11 | H29: 1.105528841e-14 | I29: 1.147789455e-14 | J29: 4.833894304e-07
A30: 210 | B30: 2.134343947e-08 | C30: 7.73402372e-10 | E30: 8.09719277e-10 | F30: 3.632221924e-11 | G30: 3.790280111e-11 | H30: 1.639331438e-14 | I30: 1.69985878e-14 | J30: 7.133226394e-07
A31: 220 | B31: 3.328366613e-08 | C31: 1.194022666e-09 | E31: 1.248537721e-09 | F31: 5.521536506e-11 | G31: 5.75469642e-11 | H31: 2.415243402e-14 | I31: 2.501307589e-14 | J31: =B31-($J$4*G31)+($J$5*I31) -> 1.045724509e-06
A32: 230 | B32: 5.161069793e-08 | C32: 1.832703179e-09 | E32: 1.914026578e-09 | F32: 8.343490746e-11 | G32: 8.685210091e-11 | H32: 3.535412115e-14 | I32: 3.656895497e-14 | J32: 1.522914011e-06
A33: 240 | B33: 7.95774708e-08 | C33: 2.796677288e-09 | E33: 2.91723587e-09 | F33: 1.253232237e-10 | G33: 1.302988861e-10 | H33: 5.141514357e-14 | I33: 5.311730518e-14 | J33: 2.203148632e-06
A34: 250 | B34: 1.220063281e-07 | C34: 4.242885726e-09 | E34: 4.420491051e-09 | F34: 1.871141895e-10 | G34: 1.943117287e-10 | H34: 7.428481243e-14 | I34: 7.665202628e-14 | J34: 3.165957452e-06
A35: 260 | B35: 1.860014827e-07 | C35: 6.399515466e-09 | E35: 6.659519661e-09 | F35: 2.77695312e-10 | G35: 2.880384962e-10 | H35: 1.066233367e-13 | I35: 1.09890623e-13 | J35: 4.518983136e-06
A36: 270 | B36: 2.819631026e-07 | C36: 9.596161984e-09 | E36: 9.974397291e-09 | F36: 4.096491715e-10 | G36: 4.244145985e-10 | H36: 1.520310062e-13 | I36: 1.565061469e-13 | J36: 6.406651914e-06
A37: 280 | B37: 4.250205999e-07 | C37: 1.430574973e-08 | E37: 1.485250309e-08 | F37: 6.00664739e-10 | G37: 6.216031032e-10 | H37: 2.153392386e-13 | I37: 2.214212738e-13 | J37: 9.021016637e-06
A38: 290 | B38: 6.37044109e-07 | C38: 2.120235092e-08 | E38: 2.198769207e-08 | F38: 8.754337634e-10 | G38: 9.049273034e-10 | H38: 3.029756115e-13 | I38: 3.11176529e-13 | J38: 1.261512822e-05
A39: 300 | B39: 9.494472762e-07 | C39: 3.124031672e-08 | E39: 3.236117836e-08 | F39: 1.268176948e-09 | G39: 1.309441748e-09 | H39: 4.234156544e-13 | I39: 4.343852553e-13 | J39: 1.751927608e-05
A40: 310 | B40: 1.407064567e-06 | C40: 4.576172908e-08 | E40: 4.735123103e-08 | F40: 1.825979334e-09 | G40: 1.883322455e-09 | H40: 5.877341009e-13 | I40: 6.022877521e-13 | J40: 2.416038723e-05
A41: 320 | B41: 2.073476059e-06 | C41: 6.664114923e-08 | E41: 6.888076503e-08 | F41: 2.613154204e-09 | G41: 2.692296802e-09 | H41: 8.102671521e-13 | I41: 8.294157584e-13 | J41: 3.308477293e-05
A42: 330 | B42: 3.038266385e-06 | C42: 9.647903261e-08 | E42: 9.96143151e-08 | F42: 3.716899466e-09 | G42: 3.825378009e-09 | H42: 1.109394628e-12 | I42: 1.13437565e-12 | J42: 4.498424626e-05
A43: 340 | B43: 4.426846845e-06 | C43: 1.38858046e-07 | E43: 1.432187543e-07 | F43: 5.254558903e-09 | G43: 5.402217069e-09 | H43: 1.50844619e-12 | I43: 1.540753881e-12 | J43: 6.072538736e-05
A44: 350 | B44: 6.413645774e-06 | C44: 1.986798929e-07 | E44: 2.047054932e-07 | F44: 7.382851003e-09 | G44: 7.582434604e-09 | H44: 2.036728514e-12 | I44: 2.078140768e-12 | J44: 8.138139034e-05
A45: 360 | B45: 9.239687183e-06 | C45: 2.826041409e-07 | E45: 2.908757744e-07 | F45: 1.030947751e-08 | G45: 1.057734354e-08 | H45: 2.730659854e-12 | I45: 2.783258103e-12 | J45: 0.0001082654736
A46: 370 | B46: 1.323583641e-05 | C46: 3.996149229e-07 | E46: 4.108950433e-07 | F46: 1.430756816e-08 | G46: 1.466451643e-08 | H46: 3.634984189e-12 | I46: 3.701161755e-12 | J46: 0.0001429642667
A47: 380 | B47: 1.885329828e-05 | C47: 5.617461864e-07 | E47: 5.770271377e-07 | F47: 1.973345188e-08 | G47: 2.020568298e-08 | H47: 4.804018788e-12 | I47: 4.886471959e-12 | J47: 0.0001873689023
A48: 390 | B48: 2.670331083e-05 | C48: 7.850012551e-07 | E48: 8.055640808e-07 | F48: 2.704826003e-08 | G48: 2.766845706e-08 | H48: 6.302866069e-12 | I48: 6.404561058e-12 | J48: 0.0002437007574
A49: 400 | B49: 3.760838709e-05 | C49: 1.090507627e-06 | E49: 1.117992338e-06 | F49: 3.684385631e-08 | G49: 3.765237756e-08 | H49: 8.208493305e-12 | I49: 8.332601241e-12 | J49: 0.000314527935
A50: 410 | B50: 5.266791554e-05 | C50: 1.505952844e-06 | E50: 1.542441207e-06 | F50: 4.98735376e-08 | G50: 5.091969538e-08 | H50: 1.061055228e-11 | I50: 1.076034361e-11 | J50: 0.0004027677135
A51: 420 | B51: 7.334143066e-05 | C51: 2.067351512e-06 | E51: 2.11546309e-06 | F51: =(E52-E50)/(A52-A50) -> 6.708785002e-08 | G51: 6.843123412e-08 | H51: 1.361177656e-11 | I51: 1.37904659e-11 | J51: 0.0005116693959
A52: 430 | B52: 0.0001015533956 | C52: 2.821196492e-06 | E52: 2.884198207e-06 | F52: 8.967569883e-08 | G52: 9.138748348e-08 | H52: 1.73277582e-11 | I52: 1.753829105e-11 | J52: 0.0006447713903
A53: 440 | B53: 0.0001398238789 | C53: 3.827048333e-06 | E53: 3.908977067e-06 | F53: 1.191106862e-07 | G53: 1.212748361e-07 | H53: 2.188587123e-11 | I53: 2.213064497e-11 | J53: 0.0008058260804
A54: 450 | B54: 0.00019143003 | C54: 5.160615109e-06 | E54: 5.266411932e-06 | F54: 1.572022732e-07 | G54: 1.599165372e-07 | H54: 2.742307922e-11 | I54: 2.770359324e-11 | J54: 0.0009986863007
A55: 460 | B55: 0.0002606037218 | C55: 6.917369178e-06 | E55: 7.05302253e-06 | F55: 2.061509164e-07 | G55: 2.095274701e-07 | H55: 3.408234328e-11 | I55: 3.439877657e-11 | J55: 0.001227148213
A56: 470 | B56: 0.0003527710883 | C56: 9.216736655e-06 | E56: 9.389430261e-06 | F56: 2.686057743e-07 | G56: 2.727713402e-07 | H56: 4.200734051e-11 | I56: 4.235806017e-11 | J56: 0.001494747322
A57: 480 | B57: 0.0004748398739 | C57: 1.220687855e-05 | E57: 1.242513802e-05 | F57: 3.477228959e-07 | G57: 3.528181465e-07 | H57: 5.133521639e-11 | I57: 5.171622713e-11 | J57: 0.00180450751
A58: 490 | B58: 0.0006355404568 | C58: 1.60700583e-05 | E58: 1.634388818e-05 | F58: 4.472210202e-07 | G58: 4.533990394e-07 | H58: 6.218713524e-11 | I58: 6.259148826e-11 | J58: 0.002158647478
A59: 500 | B59: 0.0008458260325 | C59: 2.102855756e-05 | E59: 2.136955842e-05 | F59: 5.714312215e-07 | G59: 5.788547864e-07 | H59: 7.465646619e-11 | I59: 7.50736554e-11 | J59: 0.002558255102
A60: 510 | B60: 0.001119336635 | C60: 2.735106025e-05 | E60: 2.777251261e-05 | F60: 7.253356825e-07 | G60: 7.341731199e-07 | H60: 8.879455396e-11 | I60: 8.920993811e-11 | J60: 0.003002947881
A61: 520 | B61: 0.001472930359 | C61: 3.535937236e-05 | E61: 3.587627207e-05 | F61: 9.145898931e-07 | G61: 9.250092749e-07 | H61: 1.045941783e-10 | I61: 1.049884787e-10 | J61: 0.00349054694
A62: 530 | B62: 0.001927283192 | C62: 4.543528329e-05 | E62: 4.606431047e-05 | F62: 1.145521631e-06 | G62: 1.157683101e-06 | H62: 1.219710043e-10 | I62: 1.223199383e-10 | J62: 0.004016802613
A63: 540 | B63: 0.002507556221 | C63: 5.802730293e-05 | E63: 5.878670469e-05 | F63: 1.42509925e-06 | G63: 1.439145329e-06 | H63: 1.407435664e-10 | I63: 1.410176856e-10 | J63: 0.004575221086
A64: 550 | B64: 0.003244125517 | C64: 7.36569296e-05 | E64: 7.456629547e-05 | F64: 1.760861187e-06 | G64: 1.776904984e-06 | H64: 1.606126054e-10 | I64: 1.607774138e-10 | J64: 0.005157053137
A65: 560 | B65: 0.004173365714 | C65: 9.292401973e-05 | E65: 9.400392842e-05 | F65: 2.160798313e-06 | G65: 2.178909681e-06 | H65: 1.811408781e-10 | I65: 1.811573074e-10 | J65: 0.005751516843
A66: 570 | B66: 0.00533847316 | C66: 0.0001165107446 | E66: 0.0001177822617 | F66: 2.633180911e-06 | G66: 2.653370729e-06 | H66: 2.01734868e-10 | I66: 2.01560182e-10 | J66: 0.006346334774
A67: 580 | B67: 0.00679030854 | C67: 0.0001451835379 | E67: 0.0001466675466 | F67: 3.186322781e-06 | G67: 3.208525724e-06 | H67: 2.216301141e-10 | I67: 2.212193049e-10 | J67: 0.006928671427
A68: 590 | B68: 0.0085882322 | C68: 0.000179792366 | E68: 0.0001815087174 | F68: 3.828276424e-06 | G68: 3.852332765e-06 | H68: 2.398821236e-10 | I68: 2.391898403e-10 | J68: 0.007486556606
A69: 600 | B69: 0.01080089819 | C69: 0.0002212665994 | E69: 0.0002232330751 | F69: 4.566455432e-06 | G69: 4.592092655e-06 | H69: 2.55365e-10 | I69: 2.543480233e-10 | J69: 0.008010873558
A70: 610 | B70: 0.01350696555 | C70: 0.0002706067357 | E70: 0.000272837826 | F70: 5.407183334e-06 | G70: 5.433998546e-06 | H70: 2.667799696e-10 | I70: 2.654002087e-10 | J70: 0.008497975204
A71: 620 | B71: 0.01679567788 | C71: 0.0003288712333 | E71: 0.0003313767418 | F71: 6.355172082e-06 | G71: 6.382616424e-06 | H71: 2.726758954e-10 | I71: 2.709038359e-10 | J71: 0.008952966377
A72: 630 | B72: 0.02076725553 | C72: 0.000397157765 | E72: 0.0003999412676 | F72: 7.412938197e-06 | G72: 7.44030466e-06 | H72: 2.714835831e-10 | I72: 2.693020654e-10 | J72: 0.009393653704
A73: 640 | B73: 0.02553303861 | C73: 0.0004765783072 | E73: 0.0004796355057 | F73: 8.580170166e-06 | G73: 8.60658633e-06 | H73: 2.615652002e-10 | I73: 2.589733503e-10 | J73: 0.009855117316
A74: 650 | B74: =EXP(-1*(($A74-1000)/(0.60056*$B$4))^2)+$B$3*EXP(-1*(($A74-1500)/(0.60056*$B$4))^2)+$B$5*(RAND()-RAND()+RAND()-RAND()) -> 0.03121531504 | C74: 0.0005682276434 | E74: 0.0005715446709 | F74: 9.853066792e-06 | G74: 9.877494079e-06 | H74: 2.412794177e-10 | I74: 2.382964988e-10 | J74: =B74-($J$4*G74)+($J$5*I74) -> 0.01039480069
A75: =A74+$B$6 -> 660 | B75: 0.03794676594 | C75: =(B75-B74)/(A75-A74) -> 0.0006731450897 | E75: 0.0006766968416 | F75: =(E76-E74)/(A76-A74) -> 1.122367257e-05 | G75: 1.12449136e-05 | H75: 2.090619596e-10 | I75: 2.057308651e-10 | J75: 0.01109794829
A76: 670 | B76: 0.04586946137 | C76: 0.0007922695435 | E76: 0.0007960181223 | F76: 1.267924245e-05 | G76: 1.26959579e-05 | H76: 1.635201236e-10 | I76: 1.599101922e-10 | J76: 0.01208314819
A77: 680 | B77: 0.0551333445 | C77: 0.0009263883127 | E77: 0.0009302816907 | F77: 1.420167411e-05 | G77: 1.421241025e-05 | H77: 1.03538562e-10 | I77: 9.974737583e-11 | J77: 0.01350766299 | L77: Type in (or Copy and Paste) any data you like into column A (X) and B (Y).
A78: 690 | B78: 0.06589415044 | C78: 0.001076080594 | E78: 0.001080051604 | F78: 1.576705032e-05 | G78: 1.577027802e-05 | H78: 2.839225577e-11 | I78: 2.454608477e-11 | J78: 0.01557216225 | L78: Change the smooth width by changing the 17 red coefficients in row 5, columns K through AA.
A79: 700 | B79: 0.07831071961 | C79: 0.001241656918 | E79: 0.001245622697 | F79: 1.734533735e-05 | G79: 1.73395027e-05 | H79: -6.213873444e-11 | I79: -6.588615174e-11 | J79: 0.01852440991 | L79: Extend the spreadsheet to longer columns of data by dragging the last row of columns A through H down as needed.
A80: 710 | B80: 0.0925416832 | C80: 0.001423096359 | E80: 0.001426958351 | F80: 1.890028579e-05 | G80: 1.888387188e-05 | H80: -1.676593939e-10 | I80: -1.711299818e-10 | J80: 0.0226614181
A81: 720 | B81: 0.1087415209 | C81: 0.00161998377 | E81: 0.001623628413 | F81: 2.038957861e-05 | G81: 2.036117731e-05 | H81: -2.87062405e-10 | I81: -2.900589535e-10 | J81: 0.02832956123
A82: 730 | B82: 0.1270560184 | C82: 0.001831449751 | E82: =(C74*$L$6+C75*$M$6+C76*$N$6+C77*$O$6+C78*$P$6+C79*$Q$6+C80*$R$6+C81*$S$6+C82*$T$6+C83*$U$6+C84*$V$6+C85*$W$6+C86*$X$6+C87*$Y$6+C88*$Z$6+C89*$AA$6+C90*$AB$6)/SUM($L$6:$AB$6) -> 0.001834749924 | F82: 2.176526623e-05 | G82: 2.172365777e-05 | H82: -4.184516103e-10 | I82: -4.207650873e-10 | J82: 0.03592215881
A83: 740 | B83: 0.1476171826 | C83: 0.002056116421 | E83: 0.002058933737 | F83: 2.297452002e-05 | G83: 2.291875759e-05 | H83: -5.590947237e-10 | I83: -5.60513588e-10 | J83: 0.04587408709
A84: 750 | B84: 0.1705377062 | C84: 0.002292052355 | E84: 0.002294240324 | F84: 2.396072409e-05 | G84: 2.389021952e-05 | H84: -7.054132944e-10 | I84: -7.057345378e-10 | J84: 0.05865307329
A85: 760 | B85: 0.1959051078 | C85: 0.002536740165 | E85: 0.002538148219 | F85: 2.466490988e-05 | G85: 2.457951613e-05 | H85: -8.530168387e-10 | I85: -8.520583139e-10 | J85: 0.07474746183
A86: 770 | B86: 0.2237757097 | C86: 0.002787060191 | E86: 0.002787538522 | F86: 2.502752068e-05 | G86: 2.492760601e-05 | H86: -9.967862837e-10 | I86: -9.943997105e-10 | J86: 0.09465041962
A87: 780 | B87: 0.2541686451 | C87: 0.003039293539 | E87: 0.003038698633 | F87: 2.49904728e-05 | G87: 2.487698137e-05 | H87: -1.131009436e-09 | I87: -1.127093333e-09 | J87: 0.1188407593
A88: 790 | B88: 0.2870601177 | C88: 0.003289147261 | E88: 0.003287347978 | F88: 2.449945922e-05 | G88: 2.437395296e-05 | H88: -1.249568179e-09 | I88: -1.244079867e-09 | J88: 0.1477607985
A89: 800 | B89: 0.3223781562 | C89: 0.003531803849 | E89: 0.003528687817 | F89: 2.350642061e-05 | G89: 2.337109728e-05 | H89: -1.346173673e-09 | I89: -1.339139424e-09 | J89: 0.1817919234
A90: 810 | B90: 0.3599981193 | C90: 0.00376199631 | E90: 0.00375747639 | F90: 2.197208867e-05 | G90: 2.182977213e-05 | H90: -1.414642169e-09 | I90: -1.406164599e-09 | J90: 0.2212287763
A91: 820 | B91: 0.3997392102 | C91: 0.003974109091 | E91: 0.003968129591 | F91: 1.986849055e-05 | G91: 1.972259011e-05 | H91: =(G90-2*G91+G92)/(A92-A90)^2 -> -1.449200386e-09 | I91: =(H83*$L$6+H84*$M$6+H85*$N$6+H86*$O$6+H87*$P$6+H88*$Q$6+H89*$R$6+H90*$S$6+H91*$T$6+H92*$U$6+H93*$V$6+H94*$W$6+H95*$X$6+H96*$Y$6+H97*$Z$6+H98*$AA$6+H99*$AB$6)/SUM($L$6:$AB$6) -> -1.439462264e-09 | J91: 0.2662532086
A92: 830 | B92: 0.4413622489 | C92: 0.00416230387 | E92: 0.004154846201 | F92: 1.718129066e-05 | G92: =(F84*$L$6+F85*$M$6+F86*$N$6+F87*$O$6+F88*$P$6+F89*$Q$6+F90*$R$6+F91*$S$6+F92*$T$6+F93*$U$6+F94*$V$6+F95*$W$6+F96*$X$6+F97*$Y$6+F98*$Z$6+F99*$AA$6+F100*$AB$6)/SUM($L$6:$AB$6) -> 1.703572794e-05 | H92: -1.444806117e-09 | I92: -1.43406989e-09 | J92: 0.316909332
A93: 840 | B93: 0.4845689287 | C93: 0.004320667972 | E93: 0.004311755404 | F93: 1.391183988e-05 | G93: 1.377094332e-05 | H93: -1.397466942e-09 | I93: -1.386069528e-09 | J93: 0.3730811205
A94: 850 | B94: 0.5290027467 | C94: 0.004443381801 | E94: 0.004433082998 | F94: 1.007880285e-05 | G94: 9.947171919e-06 | H94: -1.304538112e-09 | I94: -1.292880779e-09 | J94: 0.434474067
A95: 860 | B95: 0.5742517509 | C95: 0.00452490042 | E95: 0.004513331461 | F95: 5.719242094e-06 | G95: 5.601585277e-06 | H95: -1.16497995e-09 | I95: -1.153513418e-09 | J95: 0.5006023511
A96: 870 | B96: 0.6198531829 | C96: 0.004560143202 | E96: 0.00454746784 | F96: 8.89054069e-07 | G96: 7.900066557e-07 | H96: -9.795556624e-10 | I96: -9.687609413e-10 | J96: 0.5707828367
A97: 880 | B97: 0.6653000283 | C97: 0.004544684538 | E97: 0.004531112542 | F97: -4.337323609e-06 | G97: -4.413394231e-06 | H97: -7.509524909e-10 | I97: -7.413182678e-10 | J97: 0.6441369701
A98: 890 | B98: 0.7100494072 | C98: 0.004474937892 | E98: 0.004460721368 | F98: -9.867983775e-06 | G98: -9.917176114e-06 | H98: -4.83812427e-10 | I98: -4.758101813e-10 | J98: 0.719601316
A99: 900 | B99: 0.7535326587 | C99: 0.004348325151 | E99: 0.004333752867 | F99: -1.55954133e-05 | G99: -1.561448297e-05 | H99: -1.846633803e-10 | I99: -1.787216174e-10 | J99: 0.7959470514
A100: 910 | B100: 0.7951668914 | C100: 0.004163423272 | E100: 0.004148813102 | F100: -2.13991215e-05 | G100: -2.138565517e-05 | H100: 1.38252718e-10 | I100: 1.417735355e-10 | J100: 0.8718082586
A101: 920 | B101: 0.8343676986 | C101: 0.003920080713 | E101: 0.003905770437 | F101: -2.714896439e-05 | G101: -2.710152629e-05 | H101: 4.752520864e-10 | I101: 4.760822737e-10 | J101: 0.9457183559
A102: 930 | B102: 0.870562669 | C102: 0.003619497048 | E102: 0.003605833814 | F102: -3.270905488e-05 | G102: -3.262729658e-05 | H102: 8.155722041e-10 | I102: 8.135516754e-10 | J102: 1.016153496
A103: 940 | B103: 0.9032052735 | C103: 0.003264260448 | E103: 0.003251589339 | F103: -3.794211215e-05 | G103: -3.782683798e-05 | H103: 1.147810207e-09 | I103: 1.142901977e-09 | J103: 1.081581294
A104: 950 | B104: 0.9317886676 | C104: 0.002858339412 | E104: 0.002846991571 | F104: -4.271407273e-05 | G104: -4.25672553e-05 | H104: 1.460415291e-09 | I104: 1.452712545e-09 | J104: 1.140512845
A105: 960 | B105: 0.9558589378 | C105: 0.002407027013 | E105: 0.002397307884 | F105: -4.689876358e-05 | G105: -4.67235065e-05 | H105: 1.742209392e-09 | I105: 1.731935392e-09 | J105: 1.191555708
A106: 970 | B106: 0.9750273188 | C106: 0.001916838099 | E106: 0.0019090163 | F106: -5.038242612e-05 | G106: -5.018287395e-05 | H106: 1.982907493e-09 | I106: 1.970408058e-09 | J106: 1.233465328
A107: 980 | B107: 0.9889809386 | C107: 0.001395361987 | E107: 0.001389659362 | F107: -5.306787998e-05 | G107: -5.28490784e-05 | H107: 2.173607854e-09 | I107: 2.159336632e-09 | J107: 1.265192406
A108: 990 | B108: 0.9974916924 | C108: 0.0008510753749 | E108: 0.0008476587 | F108: -5.487812751e-05 | G108: -5.464583971e-05 | H108: 2.307223329e-09 | I108: 2.291720592e-09 | J108: 1.285923779
A109: 1000 | B109: 1.000422913 | C109: 0.0002931220632 | E109: 0.0002920968118 | F109: -5.575922382e-05 | G109: -5.551971168e-05 | H109: 2.378827857e-09 | I109: 2.362693986e-09 | J109: 1.295114732
A110: 1010 | B110: 0.9977335905 | C110: -0.0002689322543 | E110: -0.0002675257763 | F110: -5.568227159e-05 | G110: -5.544205252e-05 | H110: 2.385896901e-09 | I110: 2.369762127e-09 | J110: 1.292511001
A111: 1020 | B111: 0.9894799839 | C111: -0.0008253606596 | E111: -0.0008215486199 | F111: -5.464444308e-05 | G111: -5.441003459e-05 | H111: 2.32842685e-09 | I111: 2.312919087e-09 | J111: 1.278159326
A112: 1030 | B112: 0.9758145748 | C112: -0.001366540906 | E112: -0.001360414638 | F112: -5.266898062e-05 | G112: -5.244664592e-05 | H112: 2.208925747e-09 | I112: 2.194638487e-09 | J112: 1.252405968
A113: 1040 | B113: 0.956982414 | C113: -0.001883216079 | E113: -0.001874928232 | F113: -4.980417938e-05 | G113: -4.959968696e-05 | H113: 2.032275604e-09 | I113: 2.019737869e-09 | J113: 1.215883268
A114: 1050 | B114: 0.9333150154 | C114: -0.002366739864 | E114: -0.002356498226 | F114: -4.612140845e-05 | G114: -4.593981775e-05 | H114: 1.805474519e-09 | I114: 1.795124707e-09 | J114: 1.169484977
A115: 1060 | B115: 0.9052220444 | C115: -0.002809297094 | E115: -0.002797356401 | F115: -4.171227472e-05 | G115: -4.155775874e-05 | H115: 1.537274185e-09 | I115: 1.529439396e-09 | J115: 1.114331669
A116: 1070 | B116: 0.8731811289 | C116: -0.003204091552 | E116: -0.00319074372 | F116: -3.668507705e-05 | G116: -3.656079005e-05 | H116: 1.237734696e-09 | I116: 1.232616736e-09 | J116: 1.051728078
A117: 1080 | B117: 0.8377261821 | C117: -0.003545494681 | E117: -0.003531057942 | F117: -3.116073136e-05 | G117: -3.106872748e-05 | H117: 9.177233671e-10 | I117: 9.153921666e-10 | J117: 0.9831145808
A118: 1090 | B118: 0.7994346736 | C118: -0.003829150855 | E118: -0.003813958347 | F118: -2.526837015e-05 | G118: -2.520957557e-05 | H118: 5.883872361e-10 | I118: 5.887819358e-10 | J118: 0.910015328
A119: 1100 | B119: 0.7589143036 | C119: -0.004052036997 | E119: -0.004036425345 | F119: -1.914083062e-05 | G119: -1.911506876e-05 | H119: 2.60629904e-10 | I119: 2.635673355e-10 | J119: 0.8339856068
A120: 1110 | B120: 0.7167895383 | C120: -0.004212476532 | E120: -0.004196774959 | F120: -1.291024366e-05 | G120: -1.291630999e-05 | H120: -5.537770206e-11 | I120: -5.018787662e-11 | J120: 0.7565609733
A121: 1120 | B121: 0.6736884405 | C121: -0.004310109778 | E121: -0.004294630218 | F121: -6.703922024e-06 | G121: -6.7397023e-06 | H121: -3.506260064e-10 | I121: -3.435606426e-10 | J121: 0.6792104906
A122: 1130 | B122: 0.6302301926 | C122: -0.004345824787 | E122: -0.0043308534 | F122: -6.407214938e-07 | G122: -7.033450134e-07 | H122: -6.176128554e-10 | I122: -6.091106248e-10 | J122: 0.6032960692
A123: 1140 | B123: 0.5870136501 | C123: -0.004321654249 | E123: -0.004307444648 | F123: 5.171984958e-06 | G123: 5.085967131e-06 | H123: -8.505907818e-10 | I123: -8.41125085e-10 | J123: 0.5300394691
A124: 1150 | B124: 0.544607197 | C124: -0.004240645309 | E124: -0.004227413701 | F124: 1.06406201e-05 | G124: 1.053504296e-05 | H124: -1.045705921e-09 | I124: -1.035757164e-09 | J124: 0.4604980119
A125: 1160 | B125: 0.5035400977 | C125: -0.004106709936 | E125: -0.004094632246 | F125: 1.568694669e-05 | G125: 1.556583643e-05 | H125: -1.201026033e-09 | I125: -1.191054976e-09 | J125: 0.3955495019
A126: 1170 | B126: 0.4642954596 | C126: -0.003924463803 | E126: -0.003913674767 | F126: 2.024883222e-05 | G126: 2.011621948e-05 | H126: -1.316461919e-09 | I126: -1.306885659e-09 | J126: 0.3358863103
A127: 1180 | B127: 0.4273048444 | C127: -0.003699061525 | E127: -0.003689655602 | F127: 2.428026677e-05 | G127: 2.414001776e-05 | H127: -1.393592766e-09 | I127: -1.384764674e-09 | J127: 0.2820180606
A128: 1190 | B128: 0.3929444889 | C128: -0.003436035553 | E128: -0.003428069432 | F128: 2.775070528e-05 | G128: 2.760637893e-05 | H128: -1.435411243e-09 | I128: -1.427605855e-09 | J128: 0.2342819082
A129: 1200 | B129: 0.3615330379 | C129: -0.003141145095 | E129: -0.003134641496 | F129: 3.064383842e-05 | G129: 3.049857561e-05 | H129: -1.446008167e-09 | I129: -1.439411688e-09 | J129: 0.1928590459
A130: 1210 | B130: 0.3333306355 | C130: -0.002820240242 | E130: -0.002815192663 | F130: 3.295592034e-05 | G130: 3.281236903e-05 | H130: -1.430219177e-09 | I130: -1.424925857e-09 | J130: 0.1577958122
A131: 1220 | B131: 0.3085391848 | C131: -0.002479145073 | E131: -0.00247552309 | F131: 3.469379701e-05 | G131: 3.455407477e-05 | H131: -1.393256907e-09 | I131: -1.389271185e-09 | J131: 0.1290276435
A132: 1230 | B132: 0.2873035651 | C132: -0.002123561969 | E132: -0.002121316723 | F132: 3.587278472e-05 | G132: 3.573847775e-05 | H132: -1.340351749e-09 | I132: -1.33759573e-09 | J132: 0.1064040836
A133: 1240 | B133: 0.2697135862 | C133: -0.001758997882 | E133: -0.001758067395 | F133: 3.651454454e-05 | G133: 3.638674002e-05 | H133: -1.276422515e-09 | I133: -1.274748037e-09 | J133: 0.08971315512
A134: 1250 | B134: 0.2558064678 | C134: -0.001390711848 | E134: =(C126*$L$6+C127*$M$6+C128*$N$6+C129*$O$6+C130*$P$6+C131*$Q$6+C132*$R$6+C133*$S$6+C134*$T$6+C135*$U$6+C136*$V$6+C137*$W$6+C138*$X$6+C139*$Y$6+C140*$Z$6+C141*$AA$6+C142*$AB$6)/SUM($L$6:$AB$6) -> -0.001391025832 | F134: 3.66450863e-05 | G134: =(F126*$L$6+F127*$M$6+F128*$N$6+F129*$O$6+F130*$P$6+F131*$Q$6+F132*$R$6+F133*$S$6+F134*$T$6+F135*$U$6+F136*$V$6+F137*$W$6+F138*$X$6+F139*$Y$6+F140*$Z$6+F141*$AA$6+F142*$AB$6)/SUM($L$6:$AB$6) -> 3.65244333e-05 | H134: -1.205795369e-09 | I134: -1.204999691e-09 | J134: 0.07870357784 | K134: Midpoint between the two peaks
A135: 1260 | B135: 0.2455696503 | C135: -0.001023681751 | E135: -0.001025165669 | F135: 3.629301605e-05 | G135: 3.617980842e-05 | H135: -1.131985512e-09 | I135: -1.131829493e-09 | J135: 0.07310358914
A136: 1270 | B136: 0.238943777 | C136: -0.0006625873263 | E136: -0.0006651655114 | F136: 3.548811529e-05 | G136: 3.538238934e-05 | H136: -1.057551581e-09 | I136: -1.057779128e-09 | J136: 0.07263544344
A137: 1280 | B137: 0.2358257206 | C137: -0.0003118056419 | E137: -0.0003154033633 | F137: 3.426031074e-05 | G137: 3.416194963e-05 | H137: -9.8402784e-10 | I137: -9.843853938e-10 | J137: 0.07702503341
A138: 1290 | B138: =EXP(-1*(($A138-1000)/(0.60056*$B$4))^2)+$B$3*EXP(-1*(($A138-1500)/(0.60056*$B$4))^2)+$B$5*(RAND()-RAND()+RAND()-RAND()) -> 0.2360715721 | C138: 2.458515674e-05 | E138: 2.004070344e-05 | F138: 3.263906175e-05 | G138: 3.254789878e-05 | H138: -9.119343143e-10 | I138: -9.121891875e-10 | J138: =B138-($J$4*G138)+($J$5*I138) -> 0.08600645209
A139: =A138+$B$6 -> 1300 | B139: 0.2394995536 | C139: =(B139-B138)/(A139-A138) -> 0.0003427981422 | E139: 0.0003373778717 | F139: =(E140-E138)/(A140-A138) -> 3.065316089e-05 | G139: 3.056907421e-05 | H139: -8.408602812e-10 | I139: -8.408167892e-10 | J139: 0.09932168361
A140: 1310 | B140: 0.245892854 | C140: 0.0006393300459 | E140: 0.0006331039212 | F140: 2.833091331e-05 | G140: 2.825390552e-05 | H140: -7.6961228e-10 | I140: -7.691247622e-10 | J140: 0.1167159496
A141: 1320 | B141: 0.2550024285 | C141: 0.0009109574509 | E141: 0.000903996138 | F141: 2.570063459e-05 | G141: 2.563089193e-05 | H141: -6.964142077e-10 | I141: -6.953962517e-10 | J141: 0.1379295283
A142: 1330 | B142: 0.2665498246 | C142: 0.001154739604 | E142: 0.001147116613 | F142: 2.279138522e-05 | G142: 2.272931265e-05 | H142: -6.191443112e-10 | I142: -6.175737301e-10 | J142: 0.162687092
A143: 1340 | B143: 0.2802301225 | C143: 0.001368029792 | E143: 0.001359823842 | F143: 1.963384555e-05 | G143: 1.958007564e-05 | H143: -5.355920902e-10 | I143: -5.335114607e-10 | J143: 0.19068576
A144: 1350 | B144: 0.2957150843 | C144: 0.001548496181 | E144: 0.001539793524 | F144: 1.626122624e-05 | G144: 1.62166018e-05 | H144: -4.437173511e-10 | I144: -4.412301788e-10 | J144: 0.2215831382
A145: 1360 | B145: 0.3126566037 | C145: 0.001694151941 | E145: 0.001685048367 | F145: 1.271010917e-05 | G145: 1.267564102e-05 | H145: -3.418939226e-10 | I145: -3.39156757e-10 | J145: 0.2549866024
A146: 1370 | B146: 0.3306905378 | C146: 0.001803393406 | E146: =(C138*$L$6+C139*$M$6+C140*$N$6+C141*$O$6+C142*$P$6+C143*$Q$6+C144*$R$6+C145*$S$6+C146*$T$6+C147*$U$6+C148*$V$6+C149*$W$6+C150*$X$6+C151*$Y$6+C152*$Z$6+C153*$AA$6+C154*$AB$6)/SUM($L$6:$AB$6) -> 0.001793995707 | F146: 9.021119489e-06 | G146: 8.997922666e-06 | H146: -2.291218317e-10 | I146: -2.263328866e-10 | J146: 0.2904449913
A147: 1380 | B147: 0.3494409785 | C147: 0.001875044077 | E147: 0.001865470757 | F147: 5.239342515e-06 | G147: 5.228555582e-06 | H147: -1.051939604e-10 | I147: -1.025789938e-10 | J147: 0.3274437057
A148: 1390 | B148: 0.3685249932 | C148: 0.001908401468 | E148: 0.001898782558 | F148: 1.414417809e-06 | G148: 1.417110914e-06 | H148: 2.919377735e-11 | I148: 3.139740767e-11 | J148: 0.3654039784
A149: 1400 | B149: 0.3875578254 | C149: 0.001903283217 | E149: 0.001893759113 | F149: -2.399734477e-06 | G149: -2.382656243e-06 | H149: 1.723960364e-10 | I149: 1.739561238e-10 | J149: 0.4036867962
A150: 1410 | B150: 0.4061585109 | C150: 0.001860068551 | E150: 0.001850787868 | F150: -6.145573826e-06 | G150: -6.113464985e-06 | H150: 3.218386451e-10 | I150: 3.225446254e-10 | J150: =B150-($J$4*G150)+($J$5*I150) -> 0.4416016415
A151: 1420 | B151: 0.4239558224 | C151: 0.001779731154 | E151: 0.001770847637 | F151: -9.762977811e-06 | G151: -9.715538269e-06 | H151: 4.74105175e-10 | I151: 4.737833105e-10 | J151: 0.4784198914
A152: 1430 | B152: 0.4405944193 | C152: 0.001663859688 | E152: 0.001655528312 | F152: -1.319062363e-05 | G152: -1.312796948e-05 | H152: 6.250842467e-10 | I152: 6.236105384e-10 | J152: 0.5133923898
A153: 1440 | B153: 0.4557410465 | C153: 0.001514662718 | E153: 0.001507035164 | F153: -1.636765287e-05 | G153: -1.6290367e-05 | H153: 7.701684852e-10 | I153: 7.674784899e-10 | J153: 0.5457704168
A154: 1450 | B154: 0.4690906018 | C154: 0.001334955533 | E154: 0.001328175255 | F154: -1.923553864e-05 | G154: -1.914469712e-05 | H154: 9.044927426e-10 | I154: 9.005876697e-10 | J154: 0.5748290273
A155: 1460 | B155: 0.4803718742 | C155: 0.001128127235 | E155: 0.001122324391 | F155: -2.174005834e-05 | G155: -2.163723015e-05 | H155: =(G154-2*G155+G156)/(A156-A154)^2 -> 1.023196708e-09 | I155: =(H147*$L$6+H148*$M$6+H149*$N$6+H150*$O$6+H151*$P$6+H152*$Q$6+H153*$R$6+H154*$S$6+H155*$T$6+H156*$U$6+H157*$V$6+H158*$W$6+H159*$X$6+H160*$Y$6+H161*$Z$6+H162*$AA$6+H163*$AB$6)/SUM($L$6:$AB$6) -> 1.018145408e-09 | J155: 0.5998915503
A156: 1470 | B156: 0.4893527498 | C156: 0.0008980875625 | E156: 0.0008933740877 | F156: -2.383326526e-05 | G156: =(F148*$L$6+F149*$M$6+F150*$N$6+F151*$O$6+F152*$P$6+F153*$Q$6+F154*$R$6+F155*$S$6+F156*$T$6+F157*$U$6+F158*$V$6+F159*$W$6+F160*$X$6+F161*$Y$6+F162*$Z$6+F163*$AA$6+F164*$AB$6)/SUM($L$6:$AB$6) -> -2.372048449e-05 | H156: 1.121695474e-09 | I156: 1.115632195e-09 | J156: 0.6203539251
A157: 1480 | B157: 0.4958446897 | C157: 0.0006491939907 | E157: 0.0006456590861 | F157: -2.547534909e-05 | G157: -2.535506064e-05 | H157: 1.195941125e-09 | I157: 1.189059195e-09 | J157: 0.6357075255
A158: 1490 | B158: 0.4997062977 | C158: 0.0003861608006 | E158: 0.0003838671059 | F158: -2.663627912e-05 | G158: -2.651126034e-05 | H158: 1.242659057e-09 | I158: 1.235200901e-09 | J158: 0.645559181
A159: 1500 | B159: 0.500845826 | C159: 0.000113952832 | E159: 0.0001129335037 | F159: -2.729713403e-05 | G159: -2.717039642e-05 | H159: 1.259544365e-09 | I159: 1.251788516e-09 | J159: 0.6496472395
A160: 1510 | B160: 0.4992225015 | C160: -0.0001623324498 | E160: -0.0001620755747 | F160: -2.745103849e-05 | G160: -2.732571475e-05 | H160: 1.245406278e-09 | I160: 1.237652234e-09 | J160: 0.6478527328
A161: 1520 | B161: 0.4948465992 | C161: -0.0004375902312 | E161: -0.0004360872662 | F161: -2.710364799e-05 | G161: -2.698287057e-05 | H161: 1.200252015e-09 | I161: 1.192803912e-09 | J161: 0.640204973
A162: 1530 | B162: 0.4877782377 | C162: -0.0007068361525 | E162: -0.0007041485345 | F162: -2.627314782e-05 | G162: -2.615992559e-05 | H162: 1.125305339e-09 | I162: 1.118455486e-09 | J162: 0.6268812219
A163: 1540 | B163: 0.4781249217 | C163: -0.000965331602 | E163: -0.0009615502225 | F163: -2.498975873e-05 | G163: -2.488685847e-05 | H163: 1.022959252e-09 | I163: 1.016972574e-09 | J163: 0.6082004085
A164: 1550 | B164: 0.4660379063 | C164: -0.001208701534 | E164: -0.001203943709 | F164: -2.32947686e-05 | G164: -2.320460765e-05 | H164: 8.966664534e-10 | I164: 8.917667784e-10 | J164: 0.5846111997
A165: 1560 | B165: 0.4517075047 | C165: -0.001433040167 | E165: -0.001427445595 | F165: -2.123913466e-05 | G165: -2.116369025e-05 | H165: 7.507749551e-10 | I165: 7.471339676e-10 | J165: 0.5566750358
A166: 1570 | B166: 0.4353574996 | C166: -0.00163500051 | E166: -0.001628726402 | F166: -1.888172306e-05 | G166: -1.882246286e-05 | H166: 5.903195069e-10 | I166: 5.880489724e-10 | J166: 0.5250450113
A167: 1580 | B167: 0.4172388554 | C167: -0.001811864421 | E167: -0.001805080056 | F167: -1.628727067e-05 | G167: -1.624510768e-05 | H167: 4.207819207e-10 | I167: 4.19929556e-10 | J167: 0.4904416823
A168: 1590 | B168: 0.3976229466 | C168: -0.00196159087 | E168: -0.001954471816 | F168: -1.352416631e-05 | G168: -1.349943972e-05 | H168: 2.478348756e-10 | I168: 2.483839863e-10 | J168: 0.4536270213
A169: 1600 | B169: 0.3767945356 | C169: -0.002082841101 | E169: -0.002075563382 | F169: -1.06621556e-05 | G169: -1.065463782e-05 | H169: 7.708427322e-11 | I169: 7.895702546e-11 | J169: 0.4153777941
A170: 1610 | B170: 0.3550447311 | C170: -0.002174980456 | E170: -0.002167714928 | F170: -7.770073757e-06 | G170: -7.779002201e-06 | H170: -8.617532019e-11 | I170: -8.311135778e-11 | J170: 0.3764596171
A171: 1620 | B171: 0.3326641541 | C171: -0.002238057697 | E171: -0.002230964857 | F171: -4.913705692e-06 | G171: -4.937836714e-06 | H171: -2.37179064e-10 | I171: -2.331016699e-10 | J171: 0.3376028566
A172: 1630 | B172: 0.3099365183 | C172: -0.002272763578 | E172: -0.002265989041 | F172: -2.153861716e-06 | G172: -2.191542853e-06 | H172: -3.718732314e-10 | I172: -3.669942799e-10 | J172: 0.2994813759
A173: 1640 | B173: 0.2871328052 | C173: -0.002280371312 | E173: -0.002274042091 | F173: 4.552577106e-07 | G173: 4.060017152e-07 | H173: -4.870515931e-10 | I173: -4.816045994e-10 | J173: 0.2626949284
A174: 1650 | B174: 0.2645061836 | C174: -0.002262662163 | E174: -0.002256883887 | F174: 2.867353155e-06 | G174: 2.808725646e-06 | H174: -5.804419799e-10 | I174: -5.746692657e-10 | J174: 0.227755753
A175: 1660 | B175: 0.2422877845 | C175: -0.00222183991 | E175: -0.002216695028 | F175: 5.044938565e-06 | G175: 4.979272786e-06 | H175: -6.507415098e-10 | I175: -6.448817839e-10 | J175: 0.1950796704
A176: 1670 | B176: 0.2206834032 | C176: -0.002160438129 | E176: -0.002155985116 | F176: 6.959860858e-06 | G176: 6.889523321e-06 | H176: -6.976021362e-10 | I176: -6.918791987e-10 | J176: 0.164981723
A177: 1680 | B177: 0.1998711602 | C177: -0.002081224295 | E177: -0.002077497811 | F177: 8.593433003e-06 | G177: 8.520733002e-06 | H177: -7.215710125e-10 | I177: -7.161841634e-10 | J177: 0.1376761612
A178: 1690 | B178: 0.180000115 | C178: -0.001987104526 | E178: -0.001984116456 | F178: 9.936205143e-06 | G178: 9.863314278e-06 | H178: -7.239924925e-10 | I178: -7.191090703e-10 | J178: 0.1132803726
A179: 1700 | B179: 0.1611897902 | C179: -0.001881032476 | E179: -0.001878773708 | F179: 1.098741382e-05 | G179: 1.091629856e-05 | H179: -7.068802838e-10 | I179: -7.026305838e-10 | J179: 0.09182218367
A180: 1710 | B180: 0.1435305367 | C180: -0.001765925355 | E180: -0.001764368179 | F180: 1.175416144e-05 | G180: 1.168653072e-05 | H180: -6.72769275e-10 | I180: -6.692439228e-10 | J180: 0.07324984762
A181: 1720 | B181: 0.1270846413 | C181: -0.001644589532 | E181: -0.00164369048 | F181: 1.225038619e-05 | G181: 1.218765518e-05 | H181: -6.245568575e-10 | I181: -6.218065509e-10 | J181: 0.05744396525
A182: 1730 | B182: 0.1118880663 | C182: -0.001519657499 | E182: -0.001519360456 | F182: 1.24956869e-05 | G182: 1.243895689e-05 | H182: -5.653432135e-10 | I182: -5.633806008e-10 | J182: 0.04423057044
A183: 1740 | B183: 0.09795269342 | C183: -0.001393537293 | E183: -0.001393776742 | F183: 1.251406758e-05 | G183: 1.246412132e-05 | H183: -4.982791186e-10 | I183: -4.970824756e-10 | J183: 0.03339464187
A184: 1750 | B184: 0.0852689446 | C184: -0.001268374882 | E184: -0.001269079104 | F184: 1.233266321e-05 | G184: 1.22899741e-05 | H184: -4.264284518e-10 | I184: -4.25946739e-10 | J184: 0.02469337133
A185: 1760 | B185: 0.073808651 | C185: -0.00114602936 | E185: -0.001147123477 | F185: 1.198050238e-05 | G185: 1.194525549e-05 | H185: -3.526509336e-10 | I185: -3.528097799e-10 | J185: 0.01786861752
A186: 1770 | B186: 0.06352804792 | C186: -0.001028060308 | E186: -0.001029469057 | F186: 1.1487354e-05 | G186: 1.145947652e-05 | H186: -2.795088005e-10 | I186: -2.80216956e-10 | J186: 0.01265809283
A187: 1780 | B187: 0.05437078541 | C187: -0.0009157262502 | E187: -0.0009173763973 | F187: 1.088269569e-05 | G187: 1.086189402e-05 | H187: -2.091992895e-10 | I187: -2.103551169e-10 | J187: 0.008804959087
A188: 1790 | B188: 0.04627085761 | C188: -0.0008099927807 | E188: -0.0008118151428 | F188: 1.019483072e-05 | G188: 1.018063181e-05 | H188: -1.435130882e-10 | I188: -1.450107169e-10 | J188: 0.006065637102
A189: 1800 | B189: 0.03915537001 | C189: -0.0007115487594 | E189: -0.000713479783 | F189: 9.450170135e-06 | G189: 9.441964368e-06 | H189: -8.381740194e-11 | I189: -8.555224195e-11 | J189: 0.004215756449
A190: 1810 | B190: 0.03294708169 | C190: -0.0006208288324 | E190: -0.0006228117401 | F190: 8.672686487e-06 | G190: 8.669769961e-06 | H190: -3.106107575e-11 | I190: -3.293446745e-11 | J190: 0.003054279176
A191: 1820 | B191: 0.02756667633 | C191: -0.000538040536 | E191: -0.0005400260533 | F191: 7.883536737e-06 | G191: 7.885151124e-06 | H191: 1.420168365e-11 | I191: 1.227881787e-11 | J191: 0.002405919842
A192: 1830 | B192: 0.02293473324 | C192: -0.0004631943086 | E192: -0.0004651410053 | F192: 7.100844536e-06 | G192: 7.106212961e-06 | H192: 5.177297992e-11 | I192: 4.987753808e-11 | J192: 0.002122051665
A193: 1840 | B193: 0.01897338456 | C193: -0.0003961348681 | E193: -0.0003980091625 | F193: 6.339626033e-06 | G193: 6.347983989e-06 | H193: 8.176250884e-11 | I193: 7.995764649e-11 | J193: 0.002080333905
A194: 1850 | B194: 0.01560765851 | C194: -0.0003365726055 | E194: -0.0003383484847 | F194: 5.611839353e-06 | G194: 5.622460021e-06 | H194: 1.045325884e-10 | I194: 1.028671113e-10 | J194: 0.002183319725
A195: 1860 | B195: 0.01276651991 | C195: -0.0002841138596 | E195: -0.0002857723755 | F195: 4.926535344e-06 | G195: 4.938749088e-06 | H195: 1.206407596e-10 | I195: 1.191493474e-10 | J195: 0.002356308744
A196: 1870 | B196: 0.01038362814 | C196: -0.0002382891772 | E196: -0.0002398177778 | F196: 4.290086312e-06 | G196: 4.303294459e-06 | H196: 1.307832822e-10 | I196: 1.294873889e-10 | J196: 0.002544697519
A197: 1880 | B197: 0.008397839169 | C197: -0.0001985788971 | E197: -0.0001999706492 | F197: 3.706469869e-06 | G197: 3.720153143e-06 | H197: 1.357422315e-10 | I197: 1.346514937e-10 | J197: 0.002711057723
A198: 1890 | B198: 0.006753482913 | C198: -0.0001644356256 | E198: -0.0001656883804 | F198: 3.177586522e-06 | G198: 3.19130872e-06 | H198: 1.363382297e-10 | I198: 1.354522138e-10 | J198: 0.002832139703
A199: 1900 | B199: 0.00540044918 | C199: -0.0001353033733 | E199: -0.0001364189188 | F199: 2.703591965e-06 | G199: 2.716999588e-06 | H199: 1.333901645e-10 | I199: 1.327002931e-10 | J199: 0.002895962036
A200: 1910 | B200: 0.00429411615 | C200: -0.000110633303 | E200: -0.0001116165411 | F200: 2.283227899e-06 | G200: 2.296046522e-06 | H200: 1.276826137e-10 | I200: 1.271741313e-10 | J200: 0.002899108939
... 113 more rows
